[Event "Lliga Catalana DH 2023"]
[Site "Catalonia"]
[Date "2023.02.25"]
[Round "6.7"]
[White "Garcia Jimenez, Francisco Javier"]
[Black "Gonzalez Maza, Rafael"]
[Result "1-0"]
[ECO "C00"]
[WhiteElo "2230"]
[BlackElo "2172"]
[Annotator "TA"]
[PlyCount "70"]
[EventDate "2023.01.24"]
[EventType "team-tourn"]
[EventCountry "ESP"]
[SourceTitle "playchess.com"]
[Source "ChessBase"]
[SourceQuality "1"]
[TimeControl "40/5400+30:1800+30"]

{[%evp 9,70,-16,14,3,30,31,32,31,21,12,10,-2,20,-16,-29,-14,0,0,0,0,0,0,4,0,0,0,0,18,10,12,22,17,34,17,25,14,54,10,13,0,37,0,0,0,500,503,584,326,675,353,353,150,334,328,354,347,346,338,345,326,322,324,324]} 1. e4 e6 2. d3 d5 3. Nd2 c5 4. g3 Nc6 5. Bg2 Nge7 6. Ngf3 {C00: French: Unusual White 2nd moves.} b6 7. O-O Qc7 8. Re1 {White is slightly better.} Bb7 9. exd5 Nxd5 10. Ne4 (10. Ng5 {looks sharper.} Qd7 11. Nc4 Be7 12. Qh5) 10... Be7 {[#]} 11. Nc3 $146 (11. c4 $5 {[%cal Rc4d5]} Nf6 12. Bf4 $11) ({Predecessor:} 11. c3 O-O 12. Qc2 Rad8 13. h4 h6 14. Bd2 f5 15. Bc1 fxe4 16. dxe4 Nf6 17. Bf4 {0-1 Zivkovic,N (2364)-Kollars,D (2611) Titled Tuesday intern op 15th Nov Early blitz 2022 (2)}) 11... Nxc3 12. bxc3 O-O 13. Bf4 Bd6 14. Bxd6 Qxd6 15. Ne5 Rad8 16. Nc4 Qc7 17. a4 Nb8 18. Bxb7 Qxb7 19. Qe2 Nd7 20. Reb1 Qc6 21. Rb3 Rb8 22. Qe4 Rfc8 (22... Qxe4 {simplifies} 23. dxe4 g5 24. f3 Kg7) 23. Qf4 (23. Qxc6 {simplifies} Rxc6 24. Rab1 a6 25. Nd2) 23... Rd8 24. h4 Nf6 25. a5 (25. Ne5 $5 {[%cal Re5c6]} Qc7 26. c4 $11) 25... b5 26. a6 Nd5 $2 {[%mdl 8192] [#]} (26... Qd7 $11 {and Black stays safe.}) 27. Qxf7+ $3 $18 {[%mdl 576] Double Attack} Kh8 (27... Kxf7 28. Ne5+) 28. Ne5 {[%cal Bc4e5,Be5f7,Bf7d6,Bd6b5,Bb5a7][%mdl 32]} Qe8 (28... Qb6 29. c4 Rf8) 29. Qxe8+ Rxe8 30. Nf7+ Kg8 {A mistake that costs the game.} 31. Nd6 {[%csl LRb5,LRe8]} Re7 32. Rxb5 ({But not} 32. Nxb5 Rb6 33. c4 Nb4 $18) 32... Rxb5 {White has a decisive advantage.} 33. Nxb5 Rd7 34. Rb1 {[%cal Ob5a7] Nxa7! would be deadly.} Kf7 {[#]} 35. Nxa7 $1 {[%mdl 576] Decoy} Rd6 {Dodges Nc6. Magnificent play by Garcia Jimenez!   Weighted Error Value: White=0.40/Black=0.55} 1-0

[Event "Lliga Catalana DH 2023"]
[Site "Catalonia"]
[Date "2023.02.25"]
[Round "6.7"]
[White "Martin Barcelo, Carles"]
[Black "Bernado Lopez, Roger"]
[Result "0-1"]
[ECO "C67"]
[WhiteElo "2208"]
[BlackElo "2167"]
[Annotator "TA"]
[PlyCount "102"]
[EventDate "2023.01.24"]
[EventType "team-tourn"]
[EventCountry "ESP"]
[SourceTitle "playchess.com"]
[Source "ChessBase"]
[SourceQuality "1"]
[TimeControl "40/5400+30:1800+30"]

{[%evp 17,102,-7,-12,-9,-15,-6,-6,-4,-7,-16,-10,-12,-6,-10,-1,-27,0,-35,0,-1,0,0,0,0,0,0,0,0,0,0,0,0,0,0,0,-31,0,-16,-8,-34,-35,-34,-29,-29,-36,-50,-22,-73,-45,-53,-16,-16,-16,-16,-16,-117,-16,-16,-16,-16,-16,-16,-8,-41,-16,-16,-16,-387,-356,-266,-21,-23,-23,-23,-23,-23,-23,-70,-70,-137,-137,-204,-228,-29978,-29978,-29979,-29980]} 1. e4 {[%emt 0:00:07]} e5 {[%emt 0:00:58]} 2. Nf3 {[%emt 0:01:42]} Nc6 {[%emt 0:00:04]} 3. Bb5 {[%emt 0:02:53]} Nf6 {[%emt 0:00:14]} 4. O-O Nxe4 {[%emt 0:00:30]} 5. d4 Nd6 {[%emt 0:00:30]} 6. dxe5 Nxb5 {[%emt 0:00:30]} 7. a4 d6 {[%emt 0:00:30]} 8. axb5 {[%emt 0:33:05]} Nxe5 {[%emt 0:00:30]} 9. Re1 {[%emt 0:00:30]} Be7 {[%emt 0:00:30]} 10. Nxe5 {[%emt 0:00:30] C67: Ruy Lopez: Berlin Defence: 4 0-0 Nxe4.} dxe5 {[%emt 0:00:30]} 11. Qxd8+ {[%emt 0:00:30]} Kxd8 {[%emt 0:00:30][%cal Be8d8,Bd8e7,Be7f8][%mdl 32]} 12. Rxe5 {[%emt 0:00:30] The position is equal.} Bd6 {[%emt 0:00:30]} 13. Rd5 {[%emt 0:00:30]} Be6 {[%emt 0:00:30]} 14. Rd1 {[%emt 0:00:30]} Ke7 {[%emt 0:00:30] [#]} 15. Nc3 $146 {[%emt 0:00:30]} ({Predecessor:} 15. Bg5+ f6 16. Be3 Rhd8 17. Nc3 b6 18. Ra4 Rd7 19. Rda1 Be5 20. f4 Bxc3 21. bxc3 {0-1 Bortnyk,O (2604)-So,W (2778) Chess.com Rapid Wk6 Swiss 2022 (4)}) 15... Rhd8 {[%emt 0:00:30]} 16. Be3 {[%emt 0:00:30]} b6 {[%emt 0:00:30]} 17. f4 {[%emt 0:00:30]} Kf8 {[%emt 0:00:30]} (17... Bb4 $5 {[%cal Rb4c3]}) 18. Nd5 {[%emt 0:00:30]} Re8 {[%emt 0:00:30]} 19. Kf2 $1 {[%emt 0:00:30]} h5 {[%emt 0:00:30]} 20. g3 {[%emt 0:00:30]} f6 {[%emt 0:00:30]} 21. b3 {[%emt 0:00:30]} Kf7 {[%emt 0:00:30]} 22. c4 {[%emt 0:00:30][%cal Bc2c4,Bc4c5][%mdl 32]} h4 {[%emt 0:00:30]} 23. b4 {[%emt 0:00:30]} hxg3+ {[%emt 0:00:30]} 24. hxg3 {[%emt 0:00:30]} Bxd5 {[%emt 0:00:30]} 25. Rxd5 {[%emt 0:00:30]} Bxb4 {[%emt 0:00:30]} 26. c5 {[%emt 0:00:30]} Ba5 {[%emt 0:00:30]} 27. Rad1 {[%emt 0:00:30]} Re7 {[%emt 0:00:30]} 28. Rd8 {[%emt 0:00:30]} Rxd8 {[%emt 0:00:30]} 29. Rxd8 {[%emt 0:00:30]} bxc5 {[%emt 0:00:30]} 30. Bxc5 {[%emt 0:00:30]} Bb6 {[%emt 0:00:30]} 31. Bxb6 {[%emt 0:00:30]} axb6 $15 {[%emt 0:00:30][%mdl 4096] Endgame KR-KR} 32. f5 {[%emt 0:00:30]} (32. g4 $11 {keeps the balance.}) 32... Re5 {[%emt 0:00:30]} 33. g4 {[%emt 0:00:30]} Rxb5 {[%emt 1:26:10]} 34. Rd7+ {[%emt 0:56:11]} Kg8 {[%emt 0:00:30] Strongly threatening ...Rc5.} 35. Rxc7 {[%emt 0:00:03]} Rb3 {[%emt 0:01:49]} 36. Rb7 {[%emt 0:00:58] [#]} (36. Kg2 $11 {remains equal.}) 36... b5 {[%emt 0:00:30]} (36... Kh7 $1 $17) 37. Ke2 $11 {[%emt 0:00:30]} Rb1 {[%emt 0:03:21]} 38. Kd3 {[%emt 0:00:53]} Rb4 {[%emt 0:00:45]} 39. Ke3 {[%emt 0:00:23]} Rb2 {[%emt 0:00:22]} 40. Kd3 {[%emt 0:00:43]} b4 {[%emt 0:00:41]} 41. Ke3 {[%emt 0:30:29]} b3 {[%emt 0:30:24]} 42. Kd3 $2 {[%emt 0:00:29][%mdl 8192]} (42. Rb8+ $11 {and White stays safe.} Kh7 43. Rb7) 42... Rb1 $19 {[%emt 0:00:40]} ({Stronger than} 42... Rg2 43. Ke3 $17) 43. Kc3 {[%emt 0:00:31]} Rc1+ $2 {[%emt 0:00:29]} (43... Rg1 $19 {aiming for ...Kh7.} 44. Rb5 Kh7) 44. Kd3 $11 {[%emt 0:00:28]} (44. Kxb3 Rb1+ 45. Kc3 Rxb7 46. Kc4 Rb1 47. Kd4 Rb4+ 48. Kd3 Rxg4 49. Ke3 g5 50. fxg6 f5 51. Ke2 Re4+ 52. Kd3 Re8 53. Kc4 f4 54. Kd4 f3 55. Kd5 f2 56. Kc4 f1=Q+ 57. Kc5 Re5+ 58. Kd4 Qf4+ 59. Kc3 Re3+ 60. Kd2 Qf2+ 61. Kd1 Re1#) 44... Rd1+ {[%emt 0:00:25]} 45. Ke3 {[%emt 0:00:33]} Rg1 {[%emt 0:00:29]} 46. Rb4 {[%emt 0:00:28]} Kh7 {[%emt 0:00:19]} 47. Kf3 {[%emt 0:00:32]} (47. Rb8 $11 {should be considered.}) 47... Rb1 $15 {[%emt 0:00:35]} 48. Kg3 {[%emt 0:00:31]} ({White should play} 48. Rb8 $15 b2 49. Kg2) 48... Kh6 {[%emt 0:00:36]} 49. Rb8 {[%emt 0:00:17]} (49. Kg2 $17) 49... Kg5 $19 {[%emt 0:00:28] White must now prevent ...b2.} 50. Rg8 $2 {[%emt 0:00:43] [#]} (50. Rb4 $19) 50... b2 {[%emt 0:00:18]} 51. Rxg7+ {[%emt 0:00:28]} Kh6 {[%emt 0:00:01] Weighted Error Value: White=0.41/Black=0.15 (very precise)} 0-1

[Event "Lliga Catalana DH 2023"]
[Site "Catalonia"]
[Date "2023.02.25"]
[Round "6.8"]
[White "Jimenez Ruano, Adrian"]
[Black "Gomez Jurado, Luis Alberto"]
[Result "1/2-1/2"]
[ECO "D12"]
[WhiteElo "2235"]
[BlackElo "2048"]
[Annotator "TA"]
[PlyCount "135"]
[EventDate "2023.01.24"]
[EventType "team-tourn"]
[EventCountry "ESP"]
[SourceTitle "playchess.com"]
[Source "ChessBase"]
[SourceQuality "1"]
[TimeControl "40/5400+30:1800+30"]

{[%evp 9,135,17,19,12,39,23,34,38,37,0,2,12,-2,-2,18,12,23,0,0,0,23,8,48,52,47,50,71,81,59,59,61,63,72,48,45,48,55,46,131,139,153,145,160,148,145,104,140,156,189,185,198,195,209,189,420,420,420,420,413,413,406,406,347,333,440,412,380,373,329,151,795,658,714,615,728,615,459,541,541,509,1122,1043,3234,2985,2722,2260,1520,1362,1035,995,362,275,244,148,148,148,148,148,148,148,148,148,148,148,148,148,148,148,148,148,148,148,148,148,148,148,148,148,148,0,52,0,52,0,52,0,0,0]} 1. d4 {[%emt 0:17:02]} d5 {[%emt 0:00:51]} 2. c4 {[%emt 0:00:09]} c6 {[%emt 0:00:05]} 3. Nf3 {[%emt 0:00:09]} Nf6 {[%emt 0:00:07]} 4. e3 {[%emt 0:00:48]} Bf5 {[%emt 0:04:13]} 5. Nh4 {[%emt 0:06:54]} Bc8 {[%emt 0:02:09]} 6. Nc3 {[%emt 0:05:43] [#] D12: Slav Defence: 3 Nf3 Nf6 4 e3 Bf5.} g6 $146 {[%emt 0:00:08]} ({Predecessor:} 6... e6 7. Nf3 Nbd7 8. Qc2 Bd6 9. Be2 h6 10. O-O b6 11. cxd5 exd5 12. e4 dxe4 13. Nxe4 Qc7 14. Bc4 O-O 15. Bxh6 Bf4 16. Bg5 Bxg5 17. Nexg5 Bb7 18. Qg6 {1-0 Villavicencio Martinez,A (2316)-Pinto Henriquez,R (2178) Tenerife Verano op 2015 (9)}) 7. Be2 {[%emt 0:02:22]} Bg7 {[%emt 0:00:15]} 8. O-O {[%emt 0:00:07] White is slightly better.} O-O {[%emt 0:00:03]} 9. Bd2 {[%emt 0:05:59]} Ne4 {[%emt 0:01:25]} 10. Nf3 {[%emt 0:05:45]} Nxd2 {[%emt 0:01:52]} 11. Nxd2 {[%emt 0:03:14]} e5 {[%emt 0:04:43]} 12. dxe5 {[%emt 0:01:25]} Bxe5 {[%emt 0:00:13]} 13. Nf3 {[%emt 0:04:42]} Bxc3 {[%emt 0:03:19]} 14. bxc3 {[%emt 0:00:07]} Be6 {[%emt 0:00:13]} 15. Nd4 {[%emt 0:03:22]} Qe7 {[%emt 0:01:34]} 16. Nxe6 {[%emt 0:00:55]} fxe6 {[%emt 0:00:15]} 17. cxd5 {[%emt 0:00:42]} exd5 {[%emt 0:03:55]} 18. c4 {[%emt 0:00:52]} dxc4 {[%emt 0:03:07]} 19. Bxc4+ {[%emt 0:00:08]} Kg7 {[%emt 0:00:11]} 20. Qd4+ {[%emt 0:05:04]} Qf6 {[%emt 0:00:07]} 21. Rfd1 {[%emt 0:00:31][%cal Bf1d1,Bd1d4,Bd4a4,Ba4a7][%mdl 32]} b5 {[%emt 0:08:22]} 22. Be2 {[%emt 0:00:34] Active counter play!} Qxd4 {[%emt 0:04:15]} 23. Rxd4 {[%emt 0:00:09]} a6 {[%emt 0:02:08]} ({Better is} 23... a5 $1 $14) 24. a4 $1 $36 {[%emt 0:02:39][%mdl 2048] White is really pushing.} bxa4 {[%emt 0:01:58]} 25. Rdxa4 {[%emt 0:00:39]} (25. Raxa4 a5 $16) 25... Rd8 {[%emt 0:03:54]} 26. g4 {[%emt 0:00:49]} (26. Bxa6 $2 Rxa6 27. Kf1 Rxa4 28. Rxa4 c5 $19) 26... Rd2 {[%emt 0:03:56]} 27. Bxa6 {[%emt 0:02:16]} Nd7 {[%emt 0:03:23]} 28. Bf1 {[%emt 0:04:10]} Rf8 {[%emt 0:01:37]} 29. Ra7 {[%emt 0:08:25]} Kh6 {[%emt 0:04:21]} 30. f4 {[%emt 0:01:35][%cal Bf2f4,Bf4e5][%mdl 32] Rc7 is the strong threat.} g5 {[%emt 0:00:33]} 31. R1a4 {[%emt 0:02:25]} Ne5 $2 {[%emt 0:06:06]} (31... Rf7 {was necessary.} 32. h3 gxf4) 32. fxe5 $18 {[%emt 0:06:21] Intending R4a6 and mate.} Rd1 {[%emt 0:00:08] [#]} 33. Kg2 {[%emt 0:00:21]} Rdxf1 {[%emt 0:07:48][%mdl 4096] Endgame KRR-KRR} 34. Ra2 {[%emt 0:00:23] Inhibits R1f2+.} R1f7 {[%emt 0:02:56]} 35. Rxf7 {[%emt 0:01:38]} Rxf7 {[%emt 0:00:04] KR-KR} 36. Rc2 $1 {[%emt 0:00:39]} Rc7 {[%emt 0:00:18]} 37. Kf3 {[%emt 0:00:04]} Kg7 {[%emt 0:00:47]} 38. Ke4 {[%emt 0:00:08]} Kf7 {[%emt 0:00:08]} 39. Kf5 {[%emt 0:00:11]} (39. Rf2+ $1 $18 {is the precise move to win.} Kg7 40. e6) 39... h6 $2 {[%emt 0:00:11]} (39... c5 $16 40. Kxg5 Ke6) 40. Rc5 {[%emt 0:05:10]} Rc8 {[%emt 0:00:17]} 41. e6+ {[%emt 0:32:22]} Ke7 {[%emt 0:31:01]} 42. Ke5 {[%emt 0:00:00]} Ra8 {[%emt 0:01:49]} 43. Rxc6 {[%emt 0:01:02] Strongly threatening Rc7+.} Ra5+ {[%emt 0:00:05]} 44. Ke4 {[%emt 0:00:40]} Ra2 {[%emt 0:00:07] [#]} (44... Rb5 $142 45. Rc7+ Kxe6) 45. Kf5 $1 {[%emt 0:02:57] And now Rc7+ would win.} Rf2+ {[%emt 0:00:15]} 46. Ke5 {[%emt 0:00:14]} Rxh2 {[%emt 0:00:32]} 47. Rc7+ {[%emt 0:00:04]} Ke8 {[%emt 0:00:44]} 48. Rh7 {[%emt 0:01:28]} Rh1 {[%emt 0:05:02]} 49. Kf6 {[%emt 0:00:58][%cal Rh7h8]} Rf1+ {[%emt 0:00:12]} 50. Kg6 {[%emt 0:00:35]} Rg1 {[%emt 0:02:32]} 51. Rxh6 {[%emt 0:00:28]} (51. Kxh6 Rxg4 52. Kg6 Rg3 $11) 51... Rxg4 {[%emt 0:00:16]} 52. Kf6 {[%emt 0:00:21][%cal Rh6h8]} Rh4 {[%emt 0:00:10]} 53. Rg6 {[%emt 0:00:13][%cal Rg6g8]} ({But not} 53. Kxg5 $6 Rxh6 54. Kxh6 Ke7 $11) (53. Rxh4 {is a self mate.} gxh4 54. Kg6 h3 55. Kh6 h2 56. Kg5 h1=Q 57. Kf4 Ke7 58. Ke5 Qc6 59. Kf5 Qf3+ 60. Ke5 Qxe3+ 61. Kd5 Qd3+ 62. Ke5 Qc4 63. Kf5 Qd4 64. Kg5 Kxe6 65. Kg6 Qg4+ 66. Kh7 Kf7 67. Kh8 Qh5#) 53... Rh8 {[%emt 0:00:34] Prevents Rg8+.} 54. Rxg5 {[%emt 0:00:39]} ({Resist} 54. Kxg5 $6 Ke7 $14) 54... Rf8+ {[%emt 0:00:37]} 55. Ke5 {[%emt 0:00:10] Kd6 would kill now.} Rf1 {[%emt 0:00:05]} 56. Rg8+ {[%emt 0:00:54]} Ke7 {[%emt 0:00:08]} 57. Rg7+ {[%emt 0:00:01]} Ke8 {[%emt 0:00:08]} 58. e4 {[%emt 0:00:58]} Ra1 {[%emt 0:00:54]} 59. Rd7 {[%emt 0:00:30]} Ra2 {[%emt 0:00:45]} 60. Rd5 {[%emt 0:00:29]} Ra1 {[%emt 0:00:52] [#]} 61. Kf6 $1 {[%emt 0:00:28]} Rf1+ {[%emt 0:00:38]} 62. Rf5 {[%emt 0:00:03]} Ra1 {[%emt 0:01:08]} 63. Rf2 {[%emt 0:00:46]} Re1 {[%emt 0:00:43]} 64. e5 {[%emt 0:00:48]} ({White should play} 64. Rb2 $16 {[%cal Rb2b8]} Rf1+ 65. Ke5) 64... Ra1 {[%emt 0:00:26]} (64... Rh1 $11) 65. Rf3 {[%emt 0:00:27]} (65. e7 $1 $14) 65... Rb1 {[%emt 0:00:13]} (65... Rh1 $11) 66. Rf2 {[%emt 0:00:42]} Ra1 {[%emt 0:00:05]} 67. Kf5 {[%emt 0:00:11]} (67. e7 $1 $14) 67... Ke7 $11 {[%emt 0:00:53]} 68. Ke4 {[%emt 0:00:29] Weighted Error Value: White=0.15 (very precise) /Black=0.17 (very precise)} 1/2-1/2

[Event "Lliga Catalana DH 2023"]
[Site "Catalonia"]
[Date "2023.02.25"]
[Round "6.8"]
[White "Garcia Paolicchi, Raul"]
[Black "Vehi Bach, Victor Manuel"]
[Result "1/2-1/2"]
[ECO "D02"]
[WhiteElo "2109"]
[BlackElo "2242"]
[Annotator "TA"]
[PlyCount "70"]
[EventDate "2023.01.24"]
[EventType "team-tourn"]
[EventCountry "ESP"]
[SourceTitle "playchess.com"]
[Source "ChessBase"]
[SourceQuality "1"]
[TimeControl "40/5400+30:1800+30"]

{[%evp 14,70,8,0,0,7,12,0,0,-5,59,14,26,16,31,28,123,58,67,59,133,0,0,0,28,35,21,22,34,33,73,48,91,17,23,0,0,0,0,-24,-26,-32,-30,-27,-26,-27,-17,-23,-25,-56,0,-34,0,-49,0,-35,0,-32,241]} 1. d4 Nf6 2. Nf3 e6 {[%cal Be7e6,Be6e5][%mdl 32]} 3. g3 c5 4. Bg2 cxd4 5. O-O d5 6. Nxd4 e5 7. Nb3 Be6 8. Nc3 Be7 {D02: 1 d4 d5 2 Nf3 sidelines, including 2...Nf6 3 g3 and 2...Nf6 3 Bf4.} 9. Bg5 {next Bxf6 is good for White.} Nbd7 10. f4 exf4 {The position is equal.} ({Don't do} 10... Qb6+ 11. Kh1 $14) 11. gxf4 {[%cal Of4f5] f5! is the strong threat.} g6 (11... h6 $11 12. Bh4 Nb6) 12. Kh1 {[%cal Ob3d4]} ({Don't play} 12. Nxd5 Nxd5 13. Bxd5 Bxg5 14. Bxe6 fxe6 $11) 12... h6 13. Bh4 {[%cal Ob3d4]} Nb6 14. Nd4 {[#] Strongly threatening f5.} Ng4 $146 (14... Bg4 $1 $11 {keeps the balance.}) ({Predecessor:} 14... Bg4 15. Qd3 O-O 16. Rg1 Kh8 17. Rad1 Rc8 18. h3 Bh5 19. Nf3 Nc4 20. Qd4 Kh7 {½-½ Bornholdt,J (2196)-Lutsko,A (2431) GER-chT Lands U20 2022 (3.1)}) 15. Bxe7 (15. Nxe6 $16 fxe6 16. e4 {[%mdl 64] Discovered Attack}) 15... Qxe7 $14 16. Qd3 {And now h3 would win.} Qh4 (16... O-O-O $14) 17. Qg3 {White is more active.} (17. h3 $1 $16 {Hoping for Nxe6.} Nf6 18. Ncb5 (18. f5 gxf5 19. Nxf5 Qg5 $16)) 17... Qxg3 $11 18. hxg3 Ne3 {Wards off e4} 19. Rf3 Nxg2 20. Kxg2 Bg4 21. Rd3 O-O-O 22. a4 $1 Rhe8 {[#]} 23. Kf2 (23. a5 $1 $16 {[%cal Ra5b6]} Nc4 24. b3) 23... Kb8 24. b3 (24. a5 $5 {[%cal Ra5b6]} Nc4 25. b3 $11) 24... Nd7 {[%cal Bb6d7,Bd7f6,Bf6e4][%mdl 32]} 25. Re3 Nf6 26. Rxe8 Rxe8 27. Rd1 Rc8 28. Nb1 Ne4+ 29. Kg2 a6 30. Rd3 h5 31. Re3 {[%cal Oc2c4]} Bd7 (31... Kc7 $15) 32. Rd3 (32. c4 $5 {[%cal Rc4d5]}) 32... Bg4 33. Re3 {[%cal Oc2c4]} Bd7 34. Rd3 Bg4 35. Nd2 {[#]} Bxe2 $2 {[%mdl 8192] Weighted Error Value: White=0.22 (precise) /Black=0.25 (precise)} 1/2-1/2

[Event "Lliga Catalana DH 2023"]
[Site "Catalonia"]
[Date "2023.02.25"]
[Round "6.9"]
[White "Molano Lafuente, Ismael"]
[Black "Rivas Garcia, Victor"]
[Result "1/2-1/2"]
[ECO "B40"]
[WhiteElo "1968"]
[BlackElo "2110"]
[Annotator "TA"]
[PlyCount "123"]
[EventDate "2023.01.24"]
[EventType "team-tourn"]
[EventCountry "ESP"]
[SourceTitle "playchess.com"]
[Source "ChessBase"]
[SourceQuality "1"]
[TimeControl "40/5400+30:1800+30"]

{[%evp 9,123,7,19,15,16,0,0,0,6,0,11,10,11,6,33,0,22,0,4,0,0,-6,-1,-16,31,13,17,10,22,8,9,5,8,-18,-11,-14,0,0,-4,-22,-18,-50,-28,-102,-102,-102,-98,-146,-150,-150,-158,-261,-245,-248,-227,-293,-317,-307,-305,-300,-290,-416,-373,-330,-135,-194,-127,-169,-182,-275,-235,-460,-478,-459,-333,-321,-283,-406,-355,-518,-266,-614,-530,-588,-383,-939,-458,-929,-897,-1098,-1100,-380,0,0,0,0,0,0,0,0,0,0,0,0,0,0,0,0,0,0,0,0,0,0,0,0]} 1. e4 {[%emt 0:00:03]} c5 {[%emt 0:00:03]} 2. b3 {[%emt 0:00:02]} Nc6 {[%emt 0:00:49]} 3. Bb2 {[%emt 0:00:02]} e6 {[%emt 0:00:29]} 4. Nf3 {[%emt 0:00:22]} a6 {[%emt 0:00:29]} 5. g3 {[%emt 0:00:09]} d5 {[%emt 0:00:53]} 6. exd5 {[%emt 0:01:01] B40: Sicilian: 2...e6, Unusual lines.} exd5 {[%emt 0:00:41]} 7. Bg2 {[%emt 0:00:09]} Qe7+ {[%emt 0:10:52]} 8. Qe2 {[%emt 0:00:52]} Qxe2+ {[%emt 0:00:13]} 9. Kxe2 {[%emt 0:00:05]} Bg4 {[%emt 0:00:47]} 10. Re1 {[%emt 0:00:47]} O-O-O {[%emt 0:00:26] [#]} 11. Kf1 $146 {[%emt 0:00:46]} ({Predecessor:} 11. a3 f6 12. Kf1 Bd6 13. d3 Nge7 14. Nbd2 Bc7 15. d4 Ba5 16. Rad1 Nxd4 17. Bxd4 cxd4 {0-1 Tsiamis,K (2237)-Galego,L (2511) GRE-chT 31st 2002 (5)}) 11... f6 {[%emt 0:01:24]} 12. d3 {[%emt 0:08:26]} Bd6 {[%emt 0:04:50]} 13. Nbd2 {[%emt 0:01:38]} Nge7 {[%emt 0:00:53]} 14. Rac1 {[%emt 0:10:59]} Rhe8 {[%emt 0:05:31]} 15. d4 {[%emt 0:20:30]} cxd4 {[%emt 0:13:43]} 16. Nxd4 {[%emt 0:03:34]} Be5 {[%emt 0:03:34]} (16... Nxd4 $11 {is more appropriate.} 17. Bxd4 Ba3) 17. Nxc6 {[%emt 0:12:53]} Nxc6 {[%emt 0:00:37]} 18. c3 {[%emt 0:03:57]} Kb8 {[%emt 0:13:56]} 19. Nf3 {[%emt 0:02:15]} Bc7 {[%emt 0:01:05]} 20. h3 {[%emt 0:03:46]} Bf5 {[%emt 0:02:22]} 21. Nd4 {[%emt 0:01:41]} Nxd4 {[%emt 0:01:51]} 22. cxd4 {[%emt 0:00:38]} Bd3+ {[%emt 0:02:14]} 23. Kg1 {[%emt 0:00:03]} Be4 {[%emt 0:06:28]} 24. Bc3 {[%emt 0:07:56]} Bb6 {[%emt 0:04:41]} 25. f3 {[%emt 0:10:42]} Bg6 {[%emt 0:01:45]} 26. Rxe8 {[%emt 0:03:04]} (26. Kf2 $11 {remains equal.}) 26... Rxe8 $17 {[%emt 0:00:24]} 27. Kf2 {[%emt 0:00:55]} Bd3 $1 {[%emt 0:02:01] ...Re2+ is the strong threat.} 28. Rd1 {[%emt 0:06:20]} (28. Bf1 $142 Bxf1 29. Kxf1) 28... Re2+ {[%emt 0:01:46]} 29. Kg1 {[%emt 0:00:29]} Bg6 {[%emt 0:00:38]} 30. a4 {[%emt 0:00:54]} (30. Rd2 $17 {is a better defense.} Rxd2 {[%mdl 64] Remove Defender} 31. Bxd2) 30... Re3 $19 {[%emt 0:00:33]} ({Inferior is} 30... Bc2 31. Rc1 $17) 31. Bb4 {[%emt 0:00:30]} Rxb3 {[%emt 0:00:17]} 32. Bf8 {[%emt 0:00:19]} Rb1 {[%emt 0:03:57]} 33. Rxb1 {[%emt 0:00:36]} Bxd4+ {[%emt 0:00:07]} 34. Kf1 {[%emt 0:00:35]} Bxb1 {[%emt 0:00:14]} 35. Bxg7 {[%emt 0:00:04][%mdl 4096] Endgame KBB-KBB} (35. Ke2 $142) 35... Kc7 {[%emt 0:00:59]} 36. Ke1 {[%emt 0:00:32]} Kd6 {[%emt 0:01:05]} (36... b5 $19 {and Black stays clearly on top.} 37. axb5 axb5) 37. Kd2 {[%emt 0:00:27]} (37. Bf8+ $17 Kc6 38. Kd2) 37... Ba2 {[%emt 0:00:16]} (37... Ke7 $1 $19 38. Bh6 Bc5) 38. Kc2 {[%emt 0:00:24]} Bc4 {[%emt 0:00:14] Prevents Bf1.} 39. g4 {[%emt 0:00:42]} (39. h4 $142) 39... Ke6 {[%emt 0:01:17] Strongly threatening ...b5.} 40. h4 $2 {[%emt 0:00:48]} (40. Bh6) 40... Be3 {[%emt 0:01:02]} 41. Bf8 {[%emt 0:30:31]} b5 {[%emt 0:30:12]} 42. axb5 {[%emt 0:00:25]} axb5 {[%emt 0:00:05]} 43. Bb4 {[%emt 0:00:38]} (43. Kd1 {is the only way for White.}) 43... d4 {[%emt 0:00:26][%cal Bd5d4,Bd4d3][%mdl 32]} 44. Kd1 {[%emt 0:00:30] Inhibits Be2+.} (44. f4 {was the only defense.} f5 45. Bf3) 44... Bf2 {[%emt 0:00:47]} 45. h5 $2 {[%emt 0:00:29]} (45. f4) 45... Be3 {[%emt 0:00:06] Hoping for ...Ke5.} 46. Ba5 {[%emt 0:00:11]} d3 {[%emt 0:00:38]} 47. Bc3 $2 {[%emt 0:00:42]} (47. Bd2 Bc5 48. Kc1) 47... Bb3+ {[%emt 0:01:16]} 48. Ke1 {[%emt 0:00:11]} h6 {[%emt 0:01:35]} 49. Bd2 {[%emt 0:00:40] [#]} Bxd2+ $1 {[%emt 0:06:29]} 50. Kxd2 {[%emt 0:00:01] [#] KB-KB} Bc2 $2 {[%emt 0:00:14]} ({Black should try} 50... Bd5 $1 $19 51. Kxd3 b4) 51. f4 $11 {[%emt 0:00:24] The position is equal.} b4 {[%emt 0:00:15] Threatens to win with ...b3.} 52. Be4 {[%emt 0:00:42]} b3 {[%emt 0:01:03]} 53. Bf5+ {[%emt 0:01:09]} Ke7 {[%emt 0:01:32] ( -> ...b2)} 54. Bxd3 {[%emt 0:00:07]} Bxd3 {[%emt 0:02:26]} 55. Kxd3 {[%emt 0:00:01]} f5 {[%emt 0:00:13]} 56. gxf5 {[%emt 0:00:40] K3P-KPP} Kf6 {[%emt 0:00:04]} 57. Kc3 {[%emt 0:00:10]} Kxf5 {[%emt 0:00:04]} 58. Kxb3 {[%emt 0:00:04]} Kxf4 {[%emt 0:00:05]} 59. Kc2 {[%emt 0:00:22]} Kg5 {[%emt 0:00:04]} 60. Kd1 {[%emt 0:00:03]} Kxh5 {[%emt 0:00:10]} 61. Ke1 {[%emt 0:00:01]} Kg4 {[%emt 0:00:04]} 62. Kf1 {[%emt 0:00:07] Whites escaped into a draw.   Weighted Error Value: White=0.49/Black=0.38} 1/2-1/2